Workbook

Sheet 취득자산 내역(2019)
A1: 2019년 취득자산 내역
A3: 구분 | C3: 수량(개) | D3: 취득금액(원)
A4: 연구장비 | B4: 데스크탑 | C4: 4 | D4: 7600000
B5: 노트북 | C5: 70 | D5: 132928050
B6: 모니터 | C6: 55 | D6: 24974250
B7: S/W | C7: 234 | D7: 203148110
B8: 프린터 | C8: 4 | D8: 4114070
B9: 기타 | C9: 3 | D9: =1472910+1024500+488620 -> 2986030
B10: 소계 | C10: =SUM(C4:C9) -> 370 | D10: =SUM(D4:D9) -> 375750510
A11: 공기구비품 | B11: 책상 | C11: 352 | D11: 69062400
B12: 의자 | C12: 73 | D12: 16694300
B13: 옷장 | C13: 354 | D13: 76764200
B14: 회의테이블 | C14: 14 | D14: 10112400
B15: 캐비닛 | C15: 367 | D15: 90041500
B16: 기타 | C16: 36 | D16: 66170600
B17: 소계 | C17: =SUM(C11:C16) -> 1196 | D17: =SUM(D11:D16) -> 328845400
A18: 기반시설 | B18: 신규청사(건물) | C18: 1 | D18: 26301100242
B19: 보안장비 | C19: 19 | D19: 507465200
B20: 네트워크장비 | C20: 106 | D20: 766511000
B21: 시설관리 | C21: 12 | D21: 317273000
B22: 소계 | C22: =SUM(C18:C21) -> 138 | D22: =SUM(D18:D21) -> 27892349442
A23: 도서 | B23: 도서 | C23: 305 | D23: 23652766
B24: 소계 | C24: 305 | D24: =SUM(D23) -> 23652766
A25: 합계 | C25: =SUM(C10,C17,C22,C24) -> 2009 | D25: =SUM(D10,D17,D22,D24) -> 28620598118

Sheet 취득자산 내역(2018)
A1: 2018년 취득자산 내역
A3: 구분 | C3: 수량(개) | D3: 취득금액(원)
A4: 연구장비 | B4: 데스크탑 | C4: 11 | D4: 22535000
B5: 노트북 | C5: 71 | D5: 125892810
B6: 모니터 | C6: 55 | D6: 22109555
B7: S/W | C7: 183 | D7: 104550290
B8: 프린터 | C8: 7 | D8: 13182770
B9: 기타 | C9: 2 | D9: 2214500
B10: 소계 | C10: =SUM(C4:C9) -> 329 | D10: =SUM(D4:D9) -> 290484925
A11: 공기구비품 | B11: 책상 | C11: 52 | D11: 6978700
B12: 의자 | C12: 80 | D12: 12227700
B13: 옷장 | C13: 4 | D13: 660000
B14: 회의테이블 | C14: 6 | D14: 924000
B15: 캐비닛 | C15: 45 | D15: 5042400
B16: 기타 | C16: 1 | D16: 242300
B17: 소계 | C17: =SUM(C11:C16) -> 188 | D17: =SUM(D11:D16) -> 26075100
B18: 보안장비 | C18: 2 | D18: 79750000
B19: 네트워크장비 | C19: 21 | D19: 176853910
B20: 시설관리 | C20: 18 | D20: 23588760
B21: 소계 | C21: =SUM(C18:C20) -> 41 | D21: =SUM(D18:D20) -> 280192670
A22: 도서 | B22: 도서 | C22: 418 | D22: 22021802
B23: 소계 | C23: 418 | D23: =SUM(D22) -> 22021802
A24: 합계 | C24: =SUM(C10,C17,C21,C23) -> 976 | D24: =SUM(D10,D17,D21,D23) -> 618774497

Sheet 취득자산 내역(2017)
A1: 2017년 취득자산 내역
A3: 구분 | C3: 수량(개) | D3: 취득금액(원)
A4: 연구장비 | B4: 데스크탑 | C4: 22 | D4: 44106000
B5: 노트북 | C5: 55 | D5: 104459390
B6: 모니터 | C6: 56 | D6: 21050240
B7: S/W | C7: 196 | D7: 135248250
B8: 프린터 | C8: 17 | D8: 32189186
B9: 기타 | C9: 5 | D9: 6363900
B10: 소계 | C10: =SUM(C4:C9) -> 351 | D10: =SUM(D4:D9) -> 343416966
A11: 공기구비품 | B11: 책상 | C11: 5 | D11: 445500
B12: 의자 | C12: 334 | D12: 41476600
B13: 옷장 | C13: 3 | D13: 495000
B14: 회의테이블 | C14: 5 | D14: 594000
B15: 캐비닛 | C15: 33 | D15: 3349500
B16: 기타 | C16: 5 | D16: 1507000
B17: 소계 | C17: =SUM(C11:C16) -> 385 | D17: =SUM(D11:D16) -> 47867600
B18: 보안장비 | C18: 4 | D18: 31541360
B19: 네트워크장비 | C19: 17 | D19: 536049022
B20: 소계 | C20: =SUM(C18:C19) -> 21 | D20: =SUM(D18:D19) -> 567590382
A21: 도서 | B21: 도서 | C21: 410 | D21: 19976901
B22: 소계 | C22: 410 | D22: =SUM(D21) -> 19976901
A23: 합계 | C23: =SUM(C10,C17,C20,C22) -> 1167 | D23: =SUM(D10,D17,D20,D22) -> 978851849
